[Event "44th Chess Olympiad Women 2022"]
[Site "Chennai"]
[Date "2022.07.31"]
[Round "3.36"]
[White "Curwin, Nickaylah"]
[Black "Hng, Mei-Xian Eunice"]
[Result "0-1"]
[WhiteElo "1499"]
[BlackElo "1823"]
[Annotator "NA RC"]
[PlyCount "123"]
[EventDate "2022.??.??"]
[TimeControl "60"]

1. d4 {[%emt 0:00:03]} Nf6 {[%emt 0:00:08]} 2. Bf4 {[%emt 0:00:06]} e6 {
[%emt 0:00:18]} 3. Nf3 {[%emt 0:01:04]} c5 {[%emt 0:00:20]} 4. e3 {[%emt 0:00:
00]} Qb6 {[%emt 0:00:24]} 5. Qc1 {[%emt 0:00:54]} Nc6 {[%emt 0:00:54]} 6. c3 {
[%emt 0:00:19]} Be7 {[%emt 0:03:35]} 7. h3 {[%emt 0:01:56]} O-O {[%emt 0:04:18]
} 8. Nbd2 {[%emt 0:00:46]} cxd4 {[%emt 0:01:32]} 9. exd4 {[%emt 0:00:31]} Nd5 {
[%emt 0:08:11]} 10. Bg3 {[%emt 0:01:55]} d6 {[%emt 0:01:19]} 11. Bd3 {[%emt 0:
00:00]} h6 {[%emt 0:02:37]} 12. O-O {[%emt 0:03:10]} Qd8 {[%emt 0:05:09]} 13.
Re1 {[%emt 0:04:45]} Nf6 {[%emt 0:04:37]} 14. Qc2 {[%emt 0:03:38]} b6 {[%emt 0:
00:00]} 15. Ne4 {[%emt 0:01:47]} Bb7 {[%emt 0:00:56]} 16. Qe2 {[%emt 0:00:38]}
Qd7 {[%emt 0:19:58]} 17. Nxf6+ {[%emt 0:15:57]} Bxf6 {[%emt 0:00:20]} 18. Qe4 {
[%emt 0:00:05]} g6 {[%emt 0:00:12]} 19. Qf4 {[%emt 0:00:46]} Bg7 {[%emt 0:00:
00]} 20. Qxd6 {[%emt 0:05:18]} Qxd6 {[%emt 0:00:12]} 21. Bxd6 {[%emt 0:00:08]}
Rfd8 {[%emt 0:00:04]} 22. Bg3 {[%emt 0:01:14]} Rac8 {[%emt 0:00:27]} 23. Rad1 {
[%emt 0:03:18]} Na5 {[%emt 0:00:44]} 24. Ne5 {[%emt 0:01:18]} Bd5 {[%emt 0:00:
00]} 25. Ba6 {[%emt 0:02:03]} Bxe5 {[%emt 0:02:17]} 26. Bxe5 {[%emt 0:01:20]}
Rc6 {[%emt 0:03:19]} 27. Bb5 {[%emt 0:02:42]} Rcc8 {[%emt 0:00:11]} 28. Bf6 {
[%emt 0:00:09]} Rf8 {[%emt 0:01:57]} 29. Be7 {[%emt 0:07:50]} Bxa2 {[%emt 0:00:
00]} 30. Bxf8 {[%emt 0:00:40]} Kxf8 {[%emt 0:00:10]} 31. b4 {[%emt 0:02:40]}
Bc4 {[%emt 0:07:47]} 32. bxa5 {[%emt 0:03:15]} Bxb5 {[%emt 0:00:10]} 33. axb6 {
[%emt 0:00:06]} axb6 {[%emt 0:00:03]} 34. Rb1 {[%emt 0:00:57]} Bd3 {[%emt 0:00:
00]} 35. Rxb6 {[%emt 0:03:29]} Rxc3 {[%emt 0:00:09]} 36. Rb8+ {[%emt 0:03:03]}
Kg7 {[%emt 0:00:50]} 37. Rb7 {[%emt 0:02:17]} Rc6 {[%emt 0:01:46]} 38. Ra1 {
[%emt 0:06:14]} Be4 {[%emt 0:02:56]} 39. Rd7 {[%emt 0:00:46]} Rc8 {[%emt 0:00:
00]} 40. Raa7 {[%emt 0:00:53]} Rf8 {[%emt 0:00:06]} 41. f3 {[%emt 0:30:37]} Bc6
{[%emt 0:33:51]} 42. Rdc7 {[%emt 0:00:32]} Bd5 {[%emt 0:00:10]} 43. Kf2 {
[%emt 0:00:10]} g5 {[%emt 0:03:49]} 44. Ke3 {[%emt 0:01:42]} h5 {[%emt 0:02:25]
} 45. g3 {[%emt 0:01:22]} Kg6 {[%emt 0:01:06]} 46. h4 {[%emt 0:03:10]} gxh4 {
[%emt 0:01:32]} 47. gxh4 {[%emt 0:00:08]} Kf6 {[%emt 0:01:17]} 48. Kf4 {
[%emt 0:01:10]} Bb3 {[%emt 0:01:10]} 49. Ra5 {[%emt 0:00:58]} Rd8 {[%emt 0:00:
00]} 50. Rxh5 {[%emt 0:00:00]} Rxd4+ {[%emt 0:00:00]} 51. Ke3 {[%emt 0:00:00]}
Ra4 {[%emt 0:00:00]} 52. Rh7 {[%emt 0:00:00]} e5 {[%emt 0:00:00]} 53. Rc6+ {
[%emt 0:00:00]} Be6 {[%emt 0:00:00]} 54. Rh6+ {[%emt 0:00:00]} Kf5 {[%emt 0:00:
00]} 55. Rh5+ {[%emt 0:00:00]} Kg6 {[%emt 0:00:00]} 56. Rxe6+ {[%emt 0:00:00]}
Kxh5 {[%emt 0:00:00]} 57. Rxe5+ {[%emt 0:00:00]} Kxh4 {[%emt 0:00:00]} 58. Re4+
{[%emt 0:00:00]} Rxe4+ {[%emt 0:00:00]} 59. Kxe4 {[%emt 0:00:00]} Kg3 {[%emt 0:
00:00]} 60. f4 {[%emt 0:00:00]} Kg4 {[%emt 0:00:00]} 61. Ke5 {[%emt 0:00:00]}
f5 {[%emt 0:00:00]} 62. Kd4 {[%emt 0:03:17]} 0-1

[Event "44th Chess Olympiad Women 2022"]
[Site "Chennai"]
[Date "2022.07.31"]
[Round "3.36"]
[White "Hng, Mei-En Emmanuelle"]
[Black "Clarke, Adani"]
[Result "1-0"]
[WhiteElo "1997"]
[BlackElo "1812"]
[Annotator "NA"]
[PlyCount "55"]
[EventDate "2022.??.??"]
[TimeControl "60"]

1. e4 {[%emt 0:00:18]} e6 {[%emt 0:00:06]} 2. d4 {[%emt 0:00:23]} d5 {[%emt 0:
00:00]} 3. Nc3 {[%emt 0:00:23]} Bb4 {[%emt 0:00:19]} 4. e5 {[%emt 0:00:34]} c5
{[%emt 0:00:27]} 5. Bd2 {[%emt 0:00:18]} Ne7 {[%emt 0:00:23]} 6. Nb5 {[%emt 0:
00:00]} Bxd2+ {[%emt 0:01:03]} 7. Qxd2 {[%emt 0:00:08]} O-O {[%emt 0:00:49]} 8.
f4 {[%emt 0:00:41]} Bd7 {[%emt 0:04:51]} 9. Nd6 {[%emt 0:05:48]} Qb6 {[%emt 0:
00:00]} 10. O-O-O {[%emt 0:05:38]} cxd4 {[%emt 0:02:19]} 11. Nf3 {[%emt 0:00:
00]} Nbc6 {[%emt 0:00:59]} 12. Bd3 {[%emt 0:00:56]} f6 {[%emt 0:05:26]} 13. Qe1
{[%emt 0:09:03]} Nb4 {[%emt 0:12:51]} 14. Kb1 {[%emt 0:03:50]} a6 {[%emt 0:00:
00]} 15. Nxd4 {[%emt 0:20:11]} Nxd3 {[%emt 0:08:17]} 16. Rxd3 {[%emt 0:00:17]}
Nc6 {[%emt 0:00:15]} 17. Nf3 {[%emt 0:06:33]} Qc7 {[%emt 0:03:46]} 18. h4 {
[%emt 0:07:32]} Ne7 {[%emt 0:06:17]} 19. Rc3 {[%emt 0:03:57]} Bc6 {[%emt 0:00:
00]} 20. Nd4 {[%emt 0:01:35]} Qd7 {[%emt 0:00:45]} 21. h5 {[%emt 0:02:28]} h6 {
[%emt 0:09:31]} 22. Rg3 {[%emt 0:02:43]} fxe5 {[%emt 0:04:04]} 23. Qxe5 {
[%emt 0:06:14]} Nc8 {[%emt 0:00:30]} 24. Nxe6 {[%emt 0:02:25]} Kh8 {[%emt 0:00:
00]} 25. Nxf8 {[%emt 0:01:17]} Qc7 {[%emt 0:02:21]} 26. Ne6 {[%emt 0:04:44]}
Qe7 {[%emt 0:00:39]} 27. Rxg7 {[%emt 0:01:21]} Qxd6 {[%emt 0:00:34]} 28. Rh7+ {
[%emt 0:01:17]} 1-0

[Event "44th Chess Olympiad Women 2022"]
[Site "Chennai"]
[Date "2022.07.31"]
[Round "3.36"]
[White "Miller, Rachel"]
[Black "Khegay, Anjela"]
[Result "0-1"]
[WhiteElo "1961"]
[BlackElo "2131"]
[Annotator "NA"]
[PlyCount "106"]
[EventDate "2022.??.??"]
[TimeControl "60"]

1. e4 {[%emt 0:00:03]} g6 {[%emt 0:00:10]} 2. d4 {[%emt 0:00:17]} d6 {[%emt 0:
00:00]} 3. Nc3 {[%emt 0:00:46]} Bg7 {[%emt 0:00:14]} 4. Be3 {[%emt 0:00:27]} a6
{[%emt 0:00:16]} 5. Qd2 {[%emt 0:00:37]} b5 {[%emt 0:00:10]} 6. h4 {[%emt 0:00:
00]} h6 {[%emt 0:00:13]} 7. f3 {[%emt 0:02:19]} Nd7 {[%emt 0:00:32]} 8. a4 {
[%emt 0:06:51]} bxa4 {[%emt 0:03:47]} 9. Rxa4 {[%emt 0:01:39]} Nb6 {[%emt 0:00:
00]} 10. Ra3 {[%emt 0:06:08]} Nf6 {[%emt 0:02:38]} 11. Bd3 {[%emt 0:01:39]}
Nfd7 {[%emt 0:02:06]} 12. Qe2 {[%emt 0:21:23]} a5 {[%emt 0:05:24]} 13. Na4 {
[%emt 0:01:19]} Nxa4 {[%emt 0:08:04]} 14. Rxa4 {[%emt 0:00:10]} c5 {[%emt 0:00:
00]} 15. c3 {[%emt 0:04:52]} O-O {[%emt 0:03:10]} 16. h5 {[%emt 0:11:24]} g5 {
[%emt 0:01:01]} 17. Nh3 {[%emt 0:04:07]} Rb8 {[%emt 0:02:45]} 18. O-O {[%emt 0:
00:00]} Nf6 {[%emt 0:01:54]} 19. dxc5 {[%emt 0:05:38]} Nxh5 {[%emt 0:07:46]}
20. Rfa1 {[%emt 0:06:56]} dxc5 {[%emt 0:00:00]} 21. Bxc5 {[%emt 0:00:32]} Bxh3
{[%emt 0:00:00]} 22. e5 {[%emt 0:01:44]} Ng3 {[%emt 0:00:00]} 23. Qc2 {[%emt 0:
00:00]} Be6 {[%emt 0:02:03]} 24. Rxa5 {[%emt 0:00:13]} Bb3 {[%emt 0:02:38]} 25.
Qb1 {[%emt 0:00:30]} Bxe5 {[%emt 0:03:42]} 26. Bf2 {[%emt 0:00:35]} Bc7 {
[%emt 0:01:39]} 27. Bh7+ {[%emt 0:02:45]} Kh8 {[%emt 0:00:56]} 28. Bd4+ {
[%emt 0:01:01]} f6 {[%emt 0:04:42]} 29. Qg6 {[%emt 0:00:28]} Qe8 {[%emt 0:00:
00]} 30. Qxh6 {[%emt 0:03:58]} Qh5 {[%emt 0:00:17]} 31. Qxh5 {[%emt 0:01:21]}
Nxh5 {[%emt 0:00:04]} 32. Rxg5 {[%emt 0:00:10]} Nf4 {[%emt 0:00:29]} 33. Kf2 {
[%emt 0:00:41]} Nh3+ {[%emt 0:03:32]} 34. gxh3 {[%emt 0:00:11]} Kxh7 {[%emt 0:
00:00]} 35. Rg4 {[%emt 0:00:48]} Rg8 {[%emt 0:01:01]} 36. Rh4+ {[%emt 0:00:57]}
Kg6 {[%emt 0:00:20]} 37. Rg1+ {[%emt 0:00:12]} Kf5 {[%emt 0:01:29]} 38. Rh5+ {
[%emt 0:00:11]} Rg5 {[%emt 0:01:43]} 39. Rgxg5+ {[%emt 0:00:12]} fxg5 {[%emt 0:
00:00]} 40. h4 {[%emt 0:00:13]} Bf4 {[%emt 0:01:22]} 41. hxg5 {[%emt 0:30:25]}
Bf7 {[%emt 0:30:08]} 42. Rh7 {[%emt 0:01:06]} Rxb2+ {[%emt 0:01:06]} 43. Kg1 {
[%emt 0:02:39]} Bd5 {[%emt 0:00:26]} 44. Rxe7 {[%emt 0:00:00]} Bxf3 {[%emt 0:
00:00]} 45. Bf2 {[%emt 0:00:00]} Rb8 {[%emt 0:00:00]} 46. Bd4 {[%emt 0:00:00]}
Bg3 {[%emt 0:00:00]} 47. Rf7+ {[%emt 0:00:00]} Kg4 {[%emt 0:00:00]} 48. Rxf3 {
[%emt 0:00:00]} Kxf3 {[%emt 0:00:00]} 49. Kh1 {[%emt 0:00:00]} Rb1+ {[%emt 0:
00:00]} 50. Bg1 {[%emt 0:00:00]} Bf2 {[%emt 0:00:00]} 51. Kh2 {[%emt 0:00:00]}
Rxg1 {[%emt 0:00:00]} 52. c4 {[%emt 0:00:00]} Rxg5 {[%emt 0:00:00]} 53. c5 {
[%emt 0:00:00]} Rh5# {[%emt 0:00:00]} 0-1

[Event "44th Chess Olympiad Women 2022"]
[Site "Chennai"]
[Date "2022.07.31"]
[Round "3.37"]
[White "Gamage, Desandhi Dhihansa"]
[Black "Guo, Yu Han"]
[Result "0-1"]
[WhiteElo "1561"]
[BlackElo "1630"]
[Annotator "NA RC"]
[PlyCount "90"]
[EventDate "2022.??.??"]
[TimeControl "60"]

1. e4 {[%emt 0:00:02]} c6 {[%emt 0:00:05]} 2. d4 {[%emt 0:00:04]} d5 {[%emt 0:
00:00]} 3. e5 {[%emt 0:00:05]} Bf5 {[%emt 0:00:09]} 4. h4 {[%emt 0:00:05]} h5 {
[%emt 0:00:11]} 5. Bd3 {[%emt 0:00:06]} Bxd3 {[%emt 0:00:24]} 6. Qxd3 {[%emt 0:
00:00]} e6 {[%emt 0:00:27]} 7. Bg5 {[%emt 0:00:08]} Qb6 {[%emt 0:00:23]} 8. Nd2
{[%emt 0:00:16]} Qa6 {[%emt 0:00:43]} 9. c4 {[%emt 0:00:10]} Bb4 {[%emt 0:00:
00]} 10. b3 {[%emt 0:04:51]} c5 {[%emt 0:02:57]} 11. Ne2 {[%emt 0:10:06]} Nc6 {
[%emt 0:01:21]} 12. O-O {[%emt 0:00:41]} Bxd2 {[%emt 0:03:02]} 13. Qxd2 {
[%emt 0:09:09]} dxc4 {[%emt 0:13:50]} 14. d5 {[%emt 0:17:09]} Nxe5 {[%emt 0:00:
00]} 15. Qc3 {[%emt 0:05:16]} f6 {[%emt 0:02:56]} 16. Nf4 {[%emt 0:08:35]}
O-O-O {[%emt 0:03:17]} 17. Nxe6 {[%emt 0:20:38]} Rxd5 {[%emt 0:03:00]} 18. Qh3
{[%emt 0:03:57]} fxg5 {[%emt 0:05:25]} 19. Nxg5+ {[%emt 0:04:55]} Kb8 {[%emt 0:
00:00]} 20. Rfe1 {[%emt 0:01:38]} Nh6 {[%emt 0:03:06]} 21. Qg3 {[%emt 0:03:05]}
Qd6 {[%emt 0:05:21]} 22. Ne4 {[%emt 0:03:12]} Qc7 {[%emt 0:00:52]} 23. bxc4 {
[%emt 0:01:36]} Nxc4 {[%emt 0:00:31]} 24. Qb3 {[%emt 0:00:35]} Rd4 {[%emt 0:00:
00]} 25. Re2 {[%emt 0:04:09]} Rxe4 {[%emt 0:02:35]} 26. Rxe4 {[%emt 0:00:46]}
Nd2 {[%emt 0:00:05]} 27. Qc2 {[%emt 0:00:33]} Nxe4 {[%emt 0:00:05]} 28. Qxe4 {
[%emt 0:00:05]} Ng4 {[%emt 0:00:09]} 29. g3 {[%emt 0:00:57]} Rf8 {[%emt 0:00:
00]} 30. Rf1 {[%emt 0:00:29]} c4 {[%emt 0:00:09]} 31. Qc2 {[%emt 0:00:29]} Qc5
{[%emt 0:01:00]} 32. Qd2 {[%emt 0:00:59]} c3 {[%emt 0:00:31]} 33. Qc2 {[%emt 0:
00:00]} Rxf2 {[%emt 0:00:13]} 34. Rxf2 {[%emt 0:00:09]} Qxf2+ {[%emt 0:00:06]}
35. Qxf2 {[%emt 0:00:05]} Nxf2 {[%emt 0:00:03]} 36. Kxf2 {[%emt 0:00:05]} c2 {
[%emt 0:00:03]} 37. Ke2 {[%emt 0:00:04]} c1=Q {[%emt 0:00:15]} 38. Kf3 {
[%emt 0:00:03]} Kc7 {[%emt 0:00:19]} 39. g4 {[%emt 0:00:05]} hxg4+ {[%emt 0:00:
00]} 40. Kxg4 {[%emt 0:00:05]} Kd6 {[%emt 0:00:06]} 41. a4 {[%emt 0:30:05]} Ke5
{[%emt 0:30:07]} 42. h5 {[%emt 0:00:05]} Qf4+ {[%emt 0:00:11]} 43. Kh3 {
[%emt 0:00:04]} Ke4 {[%emt 0:00:11]} 44. a5 {[%emt 0:00:09]} Kf3 {[%emt 0:00:
00]} 45. h6 {[%emt 0:00:11]} Qg3# {[%emt 0:00:05]} 0-1

[Event "44th Chess Olympiad Women 2022"]
[Site "Chennai"]
[Date "2022.07.31"]
[Round "3.37"]
[White "Mills, Morgen"]
[Black "Ranasinghe, S D.."]
[Result "1/2-1/2"]
[WhiteElo "1993"]
[BlackElo "1687"]
[Annotator "NA"]
[PlyCount "96"]
[EventDate "2022.??.??"]
[TimeControl "60"]

1. e4 {[%emt 0:00:07]} c5 {[%emt 0:00:07]} 2. Nf3 {[%emt 0:00:07]} Nc6 {
[%emt 0:00:16]} 3. Bb5 {[%emt 0:00:23]} g6 {[%emt 0:00:23]} 4. O-O {[%emt 0:00:
00]} Nf6 {[%emt 0:00:12]} 5. Re1 {[%emt 0:01:34]} Bg7 {[%emt 0:00:10]} 6. Nc3 {
[%emt 0:02:42]} a6 {[%emt 0:00:34]} 7. Bxc6 {[%emt 0:00:45]} bxc6 {[%emt 0:00:
00]} 8. e5 {[%emt 0:14:37]} Nd5 {[%emt 0:00:27]} 9. Ne4 {[%emt 0:03:14]} c4 {
[%emt 0:00:56]} 10. Qe2 {[%emt 0:05:51]} O-O {[%emt 0:02:40]} 11. Qxc4 {
[%emt 0:05:14]} a5 {[%emt 0:06:54]} 12. a3 {[%emt 0:01:53]} Ba6 {[%emt 0:00:39]
} 13. Qc5 {[%emt 0:00:46]} Rb8 {[%emt 0:01:04]} 14. Nc3 {[%emt 0:04:39]} Nf4 {
[%emt 0:07:52]} 15. d3 {[%emt 0:08:01]} Ne6 {[%emt 0:02:13]} 16. Qe3 {[%emt 0:
00:00]} d5 {[%emt 0:00:25]} 17. Ne2 {[%emt 0:03:14]} c5 {[%emt 0:01:59]} 18.
Nf4 {[%emt 0:02:27]} d4 {[%emt 0:01:48]} 19. Nxe6 {[%emt 0:02:17]} fxe6 {
[%emt 0:00:05]} 20. Qe2 {[%emt 0:06:23]} Rf5 {[%emt 0:01:31]} 21. g4 {[%emt 0:
00:00]} Rf8 {[%emt 0:03:52]} 22. Ng5 {[%emt 0:01:33]} Qd7 {[%emt 0:00:04]} 23.
Ne4 {[%emt 0:04:06]} Qd5 {[%emt 0:02:57]} 24. f4 {[%emt 0:05:19]} c4 {[%emt 0:
00:00]} 25. Qg2 {[%emt 0:07:42]} cxd3 {[%emt 0:01:08]} 26. cxd3 {[%emt 0:00:05]
} Bxd3 {[%emt 0:00:09]} 27. Nf2 {[%emt 0:00:40]} Bc4 {[%emt 0:00:45]} 28. Qxd5
{[%emt 0:00:34]} exd5 {[%emt 0:00:40]} 29. g5 {[%emt 0:01:46]} Rb3 {[%emt 0:00:
00]} 30. Rd1 {[%emt 0:01:16]} d3 {[%emt 0:01:59]} 31. Rb1 {[%emt 0:02:03]} h6 {
[%emt 0:02:39]} 32. h4 {[%emt 0:00:55]} hxg5 {[%emt 0:02:12]} 33. hxg5 {
[%emt 0:00:06]} Rfb8 {[%emt 0:03:43]} 34. Bd2 {[%emt 0:00:31]} Rxb2 {[%emt 0:
00:00]} 35. Rxb2 {[%emt 0:00:05]} Rxb2 {[%emt 0:00:03]} 36. Bxa5 {[%emt 0:00:
00]} Rb3 {[%emt 0:06:00]} 37. Ra1 {[%emt 0:00:33]} Kf7 {[%emt 0:00:53]} 38. Nd1
{[%emt 0:03:27]} Bf8 {[%emt 0:01:08]} 39. Bb4 {[%emt 0:06:45]} e6 {[%emt 0:00:
00]} 40. Bxf8 {[%emt 0:00:08]} Kxf8 {[%emt 0:00:03]} 41. Kf2 {[%emt 0:33:09]}
Ke7 {[%emt 0:30:37]} 42. a4 {[%emt 0:02:15]} Rb4 {[%emt 0:01:39]} 43. Ke3 {
[%emt 0:00:00]} Ba6 {[%emt 0:00:00]} 44. Nf2 {[%emt 0:00:00]} Kd7 {[%emt 0:00:
00]} 45. a5 {[%emt 0:00:00]} Kc7 {[%emt 0:00:00]} 46. Rc1+ {[%emt 0:00:00]} Kd7
{[%emt 0:00:00]} 47. Ra1 {[%emt 0:00:00]} Kc7 {[%emt 0:00:00]} 48. Rc1+ {
[%emt 0:00:00]} Kd7 {[%emt 0:00:00]} 1/2-1/2

[Event "44th Chess Olympiad Women 2022"]
[Site "Chennai"]
[Date "2022.07.31"]
[Round "3.37"]
[White "Ouellet, Maili-Jade"]
[Black "Wickramasinghe, Minethma Lasandi"]
[Result "1-0"]
[WhiteElo "2239"]
[BlackElo "1541"]
[Annotator "RC"]
[PlyCount "95"]
[EventDate "2022.??.??"]
[TimeControl "60"]

1. d4 {[%emt 0:00:02]} Nf6 {[%emt 0:00:13]} 2. c4 {[%emt 0:00:06]} e6 {[%emt 0:
00:00]} 3. Nf3 {[%emt 0:00:17]} Bb4+ {[%emt 0:01:44]} 4. Bd2 {[%emt 0:00:06]}
Qe7 {[%emt 0:00:06]} 5. a3 {[%emt 0:00:05]} Bxd2+ {[%emt 0:00:16]} 6. Qxd2 {
[%emt 0:00:05]} d6 {[%emt 0:01:39]} 7. Nc3 {[%emt 0:00:06]} O-O {[%emt 0:01:13]
} 8. e4 {[%emt 0:00:23]} e5 {[%emt 0:01:26]} 9. d5 {[%emt 0:02:06]} a5 {
[%emt 0:00:33]} 10. Bd3 {[%emt 0:09:23]} Bg4 {[%emt 0:07:07]} 11. Ng1 {[%emt 0:
00:00]} Na6 {[%emt 0:05:10]} 12. f3 {[%emt 0:06:20]} Bd7 {[%emt 0:01:16]} 13.
Nge2 {[%emt 0:01:34]} Nc5 {[%emt 0:02:51]} 14. Bc2 {[%emt 0:00:26]} a4 {
[%emt 0:14:04]} 15. g4 {[%emt 0:06:34]} Rfb8 {[%emt 0:20:41]} 16. Ng3 {[%emt 0:
00:00]} Ne8 {[%emt 0:04:11]} 17. h4 {[%emt 0:03:02]} b5 {[%emt 0:05:51]} 18.
cxb5 {[%emt 0:01:10]} Bxb5 {[%emt 0:00:17]} 19. Nf5 {[%emt 0:00:44]} Qd8 {
[%emt 0:00:34]} 20. g5 {[%emt 0:07:25]} Bd7 {[%emt 0:04:44]} 21. Rb1 {[%emt 0:
00:00]} Ra6 {[%emt 0:04:21]} 22. Ne3 {[%emt 0:02:05]} Bb5 {[%emt 0:13:15]} 23.
Kf2 {[%emt 0:05:34]} Rab6 {[%emt 0:02:00]} 24. Kg2 {[%emt 0:07:29]} Qd7 {
[%emt 0:00:53]} 25. Na2 {[%emt 0:02:39]} Na6 {[%emt 0:03:36]} 26. Bd1 {[%emt 0:
00:00]} c5 {[%emt 0:01:52]} 27. Nc3 {[%emt 0:00:49]} Nec7 {[%emt 0:01:48]} 28.
Rh2 {[%emt 0:02:54]} R6b7 {[%emt 0:00:35]} 29. Kh1 {[%emt 0:01:05]} Na8 {
[%emt 0:00:31]} 30. h5 {[%emt 0:00:15]} Nb6 {[%emt 0:00:59]} 31. Nxb5 {[%emt 0:
00:00]} Qxb5 {[%emt 0:00:05]} 32. Be2 {[%emt 0:00:13]} c4 {[%emt 0:00:57]} 33.
g6 {[%emt 0:00:11]} h6 {[%emt 0:01:05]} 34. Nf5 {[%emt 0:00:52]} Nc8 {[%emt 0:
00:00]} 35. gxf7+ {[%emt 0:03:19]} Rxf7 {[%emt 0:00:13]} 36. Rg2 {[%emt 0:00:
00]} Kf8 {[%emt 0:00:21]} 37. Nxh6 {[%emt 0:01:15]} gxh6 {[%emt 0:00:58]} 38.
Qxh6+ {[%emt 0:00:07]} Ke7 {[%emt 0:00:10]} 39. Qe6+ {[%emt 0:00:48]} Kf8 {
[%emt 0:00:44]} 40. Rbg1 {[%emt 0:00:23]} Ne7 {[%emt 0:00:10]} 41. Qxd6 {
[%emt 0:33:15]} Ke8 {[%emt 0:31:03]} 42. Rg8+ {[%emt 0:03:42]} Rf8 {[%emt 0:00:
00]} 43. R8g7 {[%emt 0:02:21]} Rb7 {[%emt 0:00:30]} 44. Qxe5 {[%emt 0:00:39]}
Qd7 {[%emt 0:00:43]} 45. R1g3 {[%emt 0:01:10]} Qb5 {[%emt 0:00:29]} 46. h6 {
[%emt 0:01:02]} Qxb2 {[%emt 0:00:48]} 47. Rxe7+ {[%emt 0:00:28]} Rxe7 {[%emt 0:
00:00]} 48. Qxb2 {[%emt 0:00:07]} 1-0

[Event "44th Chess Olympiad Women 2022"]
[Site "Chennai"]
[Date "2022.07.31"]
[Round "3.37"]
[White "Wijesuriya, G P Y.."]
[Black "Demchenko, Svitlana"]
[Result "0-1"]
[WhiteElo "1579"]
[BlackElo "2122"]
[Annotator "NA RC"]
[PlyCount "132"]
[EventDate "2022.??.??"]
[TimeControl "60"]

1. e4 {[%emt 0:01:29]} Nf6 {[%emt 0:00:10]} 2. Nc3 {[%emt 0:00:07]} d5 {
[%emt 0:00:06]} 3. exd5 {[%emt 0:00:38]} Nxd5 {[%emt 0:00:08]} 4. Bc4 {[%emt 0:
00:00]} Nb6 {[%emt 0:00:07]} 5. Bb3 {[%emt 0:00:09]} Nc6 {[%emt 0:01:07]} 6.
Nf3 {[%emt 0:01:32]} Bf5 {[%emt 0:01:06]} 7. O-O {[%emt 0:00:30]} e6 {[%emt 0:
00:00]} 8. d4 {[%emt 0:02:26]} Be7 {[%emt 0:00:15]} 9. h3 {[%emt 0:00:39]} Qd7
{[%emt 0:04:54]} 10. Bf4 {[%emt 0:10:34]} O-O {[%emt 0:00:49]} 11. Nb5 {
[%emt 0:07:36]} Rac8 {[%emt 0:01:29]} 12. Nc3 {[%emt 0:16:28]} Rfd8 {[%emt 0:
00:00]} 13. Ne2 {[%emt 0:07:43]} Na5 {[%emt 0:04:54]} 14. Ne5 {[%emt 0:00:57]}
Qb5 {[%emt 0:00:23]} 15. a4 {[%emt 0:01:22]} Qe8 {[%emt 0:01:12]} 16. c3 {
[%emt 0:03:19]} c5 {[%emt 0:01:45]} 17. Ng3 {[%emt 0:05:54]} Bg6 {[%emt 0:00:
00]} 18. Nxg6 {[%emt 0:05:04]} hxg6 {[%emt 0:00:09]} 19. Bc2 {[%emt 0:04:56]}
cxd4 {[%emt 0:04:38]} 20. cxd4 {[%emt 0:00:03]} Nc6 {[%emt 0:04:41]} 21. Be3 {
[%emt 0:12:00]} Bf6 {[%emt 0:05:46]} 22. a5 {[%emt 0:03:55]} Nxd4 {[%emt 0:00:
00]} 23. Be4 {[%emt 0:02:37]} Nc2 {[%emt 0:16:10]} 24. Qf3 {[%emt 0:00:10]} Nd5
{[%emt 0:00:27]} 25. Rac1 {[%emt 0:02:49]} Ncxe3 {[%emt 0:01:50]} 26. fxe3 {
[%emt 0:00:08]} Rxc1 {[%emt 0:09:00]} 27. Rxc1 {[%emt 0:00:02]} Nxe3 {[%emt 0:
00:00]} 28. Bxb7 {[%emt 0:00:11]} Qb5 {[%emt 0:06:00]} 29. Ne4 {[%emt 0:05:58]}
Bd4 {[%emt 0:01:09]} 30. Kh1 {[%emt 0:00:14]} Qxb2 {[%emt 0:02:53]} 31. Re1 {
[%emt 0:01:02]} Qb4 {[%emt 0:01:28]} 32. Rc1 {[%emt 0:02:04]} Qxa5 {[%emt 0:00:
00]} 33. Ng3 {[%emt 0:01:33]} Nf5 {[%emt 0:02:50]} 34. Rf1 {[%emt 0:00:19]} Qb5
{[%emt 0:04:33]} 35. Ne2 {[%emt 0:00:28]} Bf6 {[%emt 0:01:16]} 36. Bc6 {
[%emt 0:00:51]} Qd3 {[%emt 0:00:42]} 37. Qxd3 {[%emt 0:01:34]} Rxd3 {[%emt 0:
00:00]} 38. Rb1 {[%emt 0:00:15]} Rd2 {[%emt 0:01:28]} 39. Bf3 {[%emt 0:00:13]}
Rxe2 {[%emt 0:03:20]} 40. Bxe2 {[%emt 0:00:20]} Ng3+ {[%emt 0:00:04]} 41. Kg1 {
[%emt 0:30:14]} Bd4+ {[%emt 0:30:12]} 42. Kh2 {[%emt 0:00:11]} Nxe2 {[%emt 0:
00:00]} 43. Rb8+ {[%emt 0:00:07]} Kh7 {[%emt 0:00:04]} 44. Rb7 {[%emt 0:00:05]}
f6 {[%emt 0:00:19]} 45. g4 {[%emt 0:00:05]} a5 {[%emt 0:01:00]} 46. Kg2 {
[%emt 0:00:09]} Nf4+ {[%emt 0:01:02]} 47. Kg3 {[%emt 0:00:06]} e5 {[%emt 0:00:
00]} 48. g5 {[%emt 0:00:34]} f5 {[%emt 0:01:06]} 49. Rb5 {[%emt 0:00:22]} a4 {
[%emt 0:01:17]} 50. Ra5 {[%emt 0:00:16]} Ne2+ {[%emt 0:00:07]} 51. Kf3 {
[%emt 0:00:34]} Nc3 {[%emt 0:00:09]} 52. Kg3 {[%emt 0:00:26]} Kg8 {[%emt 0:00:
00]} 53. h4 {[%emt 0:00:30]} Kf7 {[%emt 0:00:55]} 54. Ra6 {[%emt 0:00:13]} Bc5
{[%emt 0:00:34]} 55. h5 {[%emt 0:00:37]} gxh5 {[%emt 0:01:03]} 56. g6+ {
[%emt 0:00:04]} Ke7 {[%emt 0:00:14]} 57. Rc6 {[%emt 0:00:16]} a3 {[%emt 0:00:
00]} 58. Kh4 {[%emt 0:00:33]} a2 {[%emt 0:00:21]} 59. Rc7+ {[%emt 0:00:50]} Kd6
{[%emt 0:00:53]} 60. Rxg7 {[%emt 0:00:06]} a1=Q {[%emt 0:00:06]} 61. Kxh5 {
[%emt 0:00:07]} Ne4 {[%emt 0:01:15]} 62. Rd7+ {[%emt 0:00:44]} Kxd7 {[%emt 0:
00:00]} 63. g7 {[%emt 0:00:25]} Qg1 {[%emt 0:00:23]} 64. Kh6 {[%emt 0:00:00]}
Qg5+ {[%emt 0:00:15]} 65. Kh7 {[%emt 0:00:00]} Nf6+ {[%emt 0:00:07]} 66. Kh8 {
[%emt 0:00:06]} Qh6# {[%emt 0:00:06]} 0-1